bitfinex-derivatives/quotes_SOLF0:USTF0_20260314
["timestamp","ask_amount","ask_price","bid_price","bid_amount"]
[1773527934520,18.00432813,87.365,87.328,4.11139589]
[1773527934720,18.00432813,87.364,87.328,4.11139589]
[1773527934920,18.00432813,87.363,87.328,4.11139589]
[1773527935220,18.00432813,87.362,87.328,4.11139589]
[1773527935420,9.27110125,87.361,87.328,4.11139589]
[1773527935619,9.27110125,87.36,87.328,4.11139589]
[1773527935821,9.27110125,87.359,87.328,4.11139589]
[1773527936011,3.09580428,87.37,87.328,4.11139589]
[1773527936213,18.00478506,87.369,87.328,4.11139589]
[1773527936422,18.00478506,87.368,87.328,4.11139589]
[1773527936722,18.00478506,87.367,87.328,4.11139589]
[1773527937022,18.00478506,87.366,87.328,4.11139589]
[1773527937221,18.00478506,87.365,87.328,4.11139589]
[1773527937422,18.00478506,87.364,87.328,4.11139589]
[1773527937616,18.00478506,87.363,87.328,4.11139589]
[1773527937818,64.46478506,87.362,87.328,4.11139589]
[1773527938017,9.27133531,87.361,87.328,4.11139589]
[1773527938220,9.27133531,87.36,87.328,4.11139589]
[1773527938422,9.27133531,87.359,87.328,4.11139589]
[1773527938725,46.46,87.362,87.328,4.11139589]
[1773527938922,9.27189285,87.361,87.328,4.11139589]
[1773527939121,9.27189285,87.36,87.328,4.11139589]
[1773527939420,9.27189285,87.359,87.328,4.11139589]
[1773527939620,46.46,87.362,87.328,4.11139589]
[1773527939821,9.27213297,87.361,87.328,4.11139589]
[1773527940020,9.27213297,87.36,87.328,4.11139589]
[1773527940322,9.27213297,87.359,87.328,4.11139589]
[1773527940520,46.46,87.362,87.328,4.11139589]
[1773527940722,9.27238076,87.361,87.328,4.11139589]
[1773527940927,9.27238076,87.36,87.328,4.11139589]
[1773527941124,9.27238076,87.359,87.328,4.11139589]
[1773527941318,46.46,87.362,87.328,4.11139589]
[1773527941524,9.27268335,87.361,87.328,4.11139589]
[1773527941826,9.27268335,87.36,87.328,4.11139589]
[1773527942022,9.27268335,87.359,87.328,4.11139589]
[1773527942227,46.46,87.362,87.328,4.11139589]
[1773527942427,18.02011346,87.361,87.328,4.11139589]
[1773527942628,46.46,87.362,87.328,4.11139589]
[1773527942629,9.27304353,87.36,87.328,4.11139589]
[1773527942829,9.27304353,87.359,87.328,4.11139589]
[1773527943030,46.46,87.362,87.328,4.11139589]
[1773527943328,18.02091795,87.361,87.328,4.11139589]
[1773527943531,9.27344518,87.36,87.328,4.11139589]
[1773527943830,9.27344518,87.359,87.328,4.11139589]
[1773527944030,46.46,87.362,87.328,4.11139589]
[1773527944221,18.02095975,87.361,87.328,4.11139589]
[1773527944422,9.27346657,87.36,87.328,4.11139589]
[1773527944630,9.27346657,87.359,87.328,4.11139589]
[1773527944830,9.27346657,87.358,87.328,4.11139589]
[1773527945030,46.46,87.362,87.328,4.11139589]
[1773527945231,18.02192102,87.361,87.328,4.11139589]
[1773527945432,9.27397178,87.36,87.328,4.11139589]
[1773527945637,9.27397178,87.359,87.328,4.11139589]
[1773527945836,9.27397178,87.358,87.328,4.11139589]
[1773527946037,46.46,87.362,87.328,4.11139589]
[1773527946236,18.02383466,87.361,87.328,4.11139589]
[1773527946436,9.27494999,87.36,87.328,4.11139589]
[1773527946641,9.27494999,87.359,87.328,4.11139589]
[1773527946941,9.27494999,87.358,87.328,4.11139589]
[1773527947141,46.46,87.362,87.328,4.11139589]
[1773527947339,18.02473945,87.361,87.328,4.11139589]
[1773527947639,46.46,87.362,87.328,4.11139589]
[1773527947640,18.02473945,87.36,87.328,4.11139589]
[1773527947839,9.27541382,87.359,87.328,4.11139589]
[1773527948041,9.27541382,87.358,87.328,4.11139589]
[1773527948240,46.46,87.362,87.328,4.11139589]
[1773527948441,18.02590262,87.361,87.328,4.11139589]
[1773527948640,18.02590262,87.36,87.328,4.11139589]
[1773527948841,9.27602047,87.359,87.328,4.11139589]
[1773527949042,9.27602047,87.358,87.328,4.11139589]
[1773527949242,46.46,87.362,87.328,4.11139589]
[1773527949541,18.02589618,87.361,87.328,4.11139589]
[1773527949740,18.02589618,87.36,87.328,4.11139589]
[1773527949942,9.27601684,87.359,87.328,4.11139589]
[1773527950142,9.27601684,87.358,87.328,4.11139589]
[1773527950344,46.46,87.362,87.328,4.11139589]
[1773527950538,18.02588979,87.361,87.328,4.11139589]
[1773527950739,18.02588979,87.36,87.328,4.11139589]
[1773527950941,9.27601324,87.359,87.328,4.11139589]
[1773527951240,9.27601324,87.358,87.328,4.11139589]
[1773527951440,46.46,87.362,87.328,4.11139589]
[1773527951641,18.00422457,87.361,87.328,4.11139589]
[1773527951844,18.00422457,87.36,87.328,4.11139589]
[1773527952046,9.2543508,87.359,87.328,4.11139589]
[1773527952243,9.2543508,87.358,87.328,4.11139589]
[1773527952444,46.46,87.362,87.328,4.11139589]
[1773527952645,18.00437349,87.361,87.328,4.11139589]
[1773527952845,18.00437349,87.36,87.328,4.11139589]
[1773527953045,9.25442744,87.359,87.328,4.11139589]
[1773527953243,9.25442744,87.358,87.328,4.11139589]
[1773527953444,46.46,87.362,87.328,4.11139589]
[1773527953644,18.00457598,87.361,87.328,4.11139589]
[1773527953845,18.00457598,87.36,87.328,4.11139589]
[1773527954146,9.25453166,87.359,87.328,4.11139589]
[1773527954338,9.25453166,87.358,87.328,4.11139589]
[1773527954543,46.46,87.362,87.328,4.11139589]
[1773527954738,9.25464861,87.361,87.329,10.304]
[1773527954940,18.00478957,87.36,87.329,10.304]
[1773527955145,9.25464861,87.359,87.329,10.304]
[1773527955348,9.25464861,87.358,87.329,10.304]
[1773527955545,46.46,87.362,87.329,10.304]
[1773527955746,18.00499817,87.361,87.329,10.304]
[1773527955944,18.00499817,87.36,87.329,10.304]
[1773527956148,9.25474738,87.359,87.329,10.304]
[1773527956443,46.46,87.362,87.33,4.15780268]
[1773527958550,176.77779091,87.376,87.33,4.15780268]
[1773527958848,47.32,87.364,87.33,4.15780268]
[1773527970362,47.32,87.364,87.333,4.14964829]
[1773527971559,47.32,87.364,87.334,10.303]
[1773527972555,47.32,87.364,87.338,14.46767027]
[1773527986668,47.32,87.364,87.329,10.304]
[1773527986864,47.32,87.364,87.298,45.84]
[1773527986865,3.09494014,87.36,87.317,4.16454588]
[1773527988564,3.09494014,87.36,87.321,10.305]
[1773527989670,3.09494014,87.36,87.321,14.44759437]
[1773527990968,3.09494014,87.36,87.321,10.305]
[1773527991168,3.09494014,87.36,87.323,10.304]
[1773527991668,3.09494014,87.36,87.323,14.44721222]
[1773527992769,3.09494014,87.36,87.324,4.14309946]
[1773527997675,48.46,87.363,87.324,4.14309946]
[1773528003281,3.09494014,87.36,87.323,10.304]
[1773528015191,3.09494014,87.36,87.322,4.11442578]
[1773528015790,3.09494014,87.35,87.322,4.11442578]
[1773528016187,3.09494014,87.36,87.322,4.11442578]
[1773528017603,48.46,87.363,87.322,4.11442578]
[1773528023397,3.09494014,87.36,87.322,4.11442578]
[1773528031007,48.46,87.363,87.322,4.11442578]
[1773528040217,10.3,87.365,87.322,4.11442578]
[1773528040410,17.98737298,87.364,87.322,4.11442578]
[1773528040614,17.98737298,87.363,87.322,4.11442578]
[1773528040813,9.20012744,87.362,87.322,4.11442578]
[1773528041012,10.3,87.365,87.322,4.11442578]
[1773528041217,17.88568897,87.364,87.322,4.11442578]
[1773528041413,8.78765916,87.363,87.322,4.11442578]
[1773528041614,8.78765916,87.362,87.322,4.11442578]
[1773528041917,10.3,87.365,87.322,4.11442578]
[1773528042118,17.8861894,87.364,87.322,4.11442578]
[1773528042413,8.78770519,87.363,87.322,4.11442578]
[1773528042719,8.78770519,87.362,87.322,4.11442578]
[1773528043017,10.3,87.365,87.322,4.11442578]
[1773528043221,17.88724421,87.364,87.322,4.11442578]
[1773528043419,8.78823622,87.363,87.322,4.11442578]
[1773528043615,8.78823622,87.362,87.322,4.11442578]
[1773528043815,10.3,87.365,87.322,4.11442578]
[1773528044009,17.88847562,87.364,87.322,4.11442578]
[1773528044213,8.78885666,87.363,87.322,4.11442578]
[1773528044515,8.78885666,87.362,87.322,4.11442578]
[1773528044714,10.3,87.365,87.322,4.11442578]
[1773528045014,17.88989148,87.364,87.322,4.11442578]
[1773528045215,17.88989148,87.363,87.322,4.11442578]
[1773528045411,8.78957231,87.362,87.322,4.11442578]
[1773528045612,10.3,87.365,87.322,4.11442578]
[1773528045810,17.88997683,87.364,87.322,4.11442578]
[1773528046009,17.88997683,87.363,87.322,4.11442578]
[1773528046210,8.78961558,87.362,87.322,4.11442578]
[1773528046411,8.78961558,87.361,87.322,4.11442578]
[1773528046614,10.3,87.365,87.322,4.11442578]
[1773528046819,17.89261474,87.364,87.322,4.11442578]
[1773528047118,17.89261474,87.363,87.322,4.11442578]
[1773528047320,17.89389756,87.362,87.322,4.11442578]
[1773528047522,8.79046335,87.361,87.322,4.11442578]
[1773528047720,10.3,87.365,87.322,4.11442578]
[1773528047922,17.8949466,87.364,87.322,4.11442578]
[1773528048118,17.8949466,87.363,87.322,4.11442578]
[1773528048319,17.8949466,87.362,87.322,4.11442578]
[1773528048520,8.79150632,87.361,87.322,4.11442578]
[1773528048721,8.79150632,87.36,87.322,4.11442578]
[1773528049024,10.3,87.365,87.322,4.11442578]
[1773528049220,17.89665664,87.364,87.322,4.11442578]
[1773528049418,17.89665664,87.363,87.322,4.11442578]
[1773528049618,17.89665664,87.362,87.322,4.11442578]
[1773528049818,8.7928567,87.361,87.322,4.11442578]
[1773528050018,8.7928567,87.36,87.322,4.11442578]
[1773528050222,10.3,87.365,87.322,4.11442578]
[1773528050421,17.8969307,87.364,87.322,4.11442578]
[1773528050622,17.8969307,87.363,87.322,4.11442578]
[1773528050826,17.8969307,87.362,87.322,4.11442578]
[1773528051027,8.79298911,87.361,87.322,4.11442578]
[1773528051324,8.79298911,87.36,87.322,4.11442578]
[1773528051522,10.3,87.365,87.322,4.11442578]
[1773528051722,17.89710981,87.364,87.322,4.11442578]
[1773528051922,17.89710981,87.363,87.322,4.11442578]
[1773528052115,17.89710981,87.362,87.322,4.11442578]
[1773528052317,8.79307587,87.361,87.322,4.11442578]
[1773528052521,8.79307587,87.36,87.322,4.11442578]
[1773528052727,10.3,87.365,87.322,4.11442578]
[1773528052927,17.89750016,87.364,87.322,4.11442578]
[1773528053124,17.89750016,87.363,87.322,4.11442578]
[1773528053325,17.89750016,87.362,87.322,4.11442578]
[1773528053524,8.79326639,87.361,87.322,4.11442578]
[1773528053724,8.79326639,87.36,87.322,4.11442578]
[1773528053921,10.3,87.365,87.322,4.11442578]
[1773528054126,17.89774294,87.364,87.322,4.11442578]
[1773528054328,17.89774294,87.363,87.322,4.11442578]
[1773528054528,17.89774294,87.362,87.322,4.11442578]
[1773528054827,8.79338441,87.361,87.322,4.11442578]
[1773528055027,8.79338441,87.36,87.322,4.11442578]
[1773528055328,10.3,87.365,87.322,4.11442578]
[1773528055629,17.89855833,87.364,87.322,4.11442578]
[1773528055826,17.89855833,87.363,87.322,4.11442578]
[1773528056025,17.89855833,87.362,87.322,4.11442578]
[1773528056230,8.79378184,87.361,87.322,4.11442578]
[1773528056430,8.79378184,87.36,87.322,4.11442578]
[1773528056629,10.3,87.365,87.322,4.11442578]
[1773528056929,17.89918358,87.364,87.322,4.11442578]
[1773528057126,17.89918358,87.363,87.322,4.11442578]
[1773528057326,17.89918358,87.362,87.322,4.11442578]
[1773528057526,17.89918358,87.361,87.322,4.11442578]
[1773528057724,8.79408694,87.36,87.322,4.11442578]
[1773528057923,10.3,87.365,87.322,4.11442578]
[1773528058132,17.8999215,87.364,87.322,4.11442578]
[1773528058327,17.8999215,87.363,87.322,4.11442578]
[1773528058623,17.8999215,87.362,87.322,4.11442578]
[1773528058827,17.8999215,87.361,87.322,4.11442578]
[1773528059128,8.79444687,87.36,87.322,4.11442578]
[1773528059329,8.79444687,87.359,87.322,4.11442578]
[1773528059531,10.3,87.365,87.322,4.11442578]
[1773528059731,17.90198017,87.364,87.322,4.11442578]
[1773528059930,17.90198017,87.363,87.322,4.11442578]
[1773528060123,17.90198017,87.362,87.322,4.11442578]
[1773528060323,17.90198017,87.361,87.322,4.11442578]
[1773528060528,8.79544895,87.36,87.322,4.11442578]
[1773528060724,8.79544895,87.359,87.322,4.11442578]
[1773528060933,10.3,87.365,87.322,4.11442578]
[1773528061232,17.90372495,87.364,87.322,4.11442578]
[1773528061430,17.90372495,87.363,87.322,4.11442578]
[1773528061630,17.90372495,87.362,87.322,4.11442578]
[1773528061830,17.90372495,87.361,87.322,4.11442578]
[1773528062032,8.79630007,87.36,87.322,4.11442578]
[1773528062232,8.79630007,87.359,87.322,4.11442578]
[1773528062432,10.3,87.365,87.322,4.11442578]
[1773528062636,17.90323668,87.364,87.322,4.11442578]
[1773528062838,17.90323668,87.363,87.322,4.11442578]
[1773528063034,17.90323668,87.362,87.322,4.11442578]
[1773528063233,17.90323668,87.361,87.322,4.11442578]
[1773528063434,17.90323668,87.36,87.322,4.11442578]
[1773528063734,8.79577314,87.359,87.322,4.11442578]
[1773528063935,10.3,87.365,87.322,4.11442578]
[1773528064235,17.90331146,87.364,87.322,4.11442578]
[1773528064535,17.90331146,87.363,87.322,4.11442578]
[1773528064736,17.90331146,87.362,87.322,4.11442578]
[1773528064929,17.90331146,87.361,87.322,4.11442578]
[1773528065133,17.90331146,87.36,87.322,4.11442578]
[1773528065332,8.7958079,87.359,87.322,4.11442578]
[1773528065528,10.3,87.365,87.322,4.11442578]
[1773528065736,17.90351894,87.364,87.322,4.11442578]
[1773528065936,17.90351894,87.363,87.322,4.11442578]
[1773528066132,17.90351894,87.362,87.322,4.11442578]
[1773528066333,17.90351894,87.361,87.322,4.11442578]
[1773528066529,17.90351894,87.36,87.322,4.11442578]
[1773528066737,8.79590421,87.359,87.322,4.11442578]
[1773528066938,10.3,87.365,87.322,4.11442578]
[1773528067141,17.90364707,87.364,87.322,4.11442578]
[1773528067440,17.90364707,87.363,87.322,4.11442578]
[1773528067740,17.90364707,87.362,87.322,4.11442578]
[1773528067931,17.90364707,87.361,87.322,4.11442578]
[1773528068134,17.90364707,87.36,87.322,4.11442578]
[1773528068331,8.79596364,87.359,87.322,4.11442578]
[1773528068639,10.3,87.365,87.322,4.11442578]
[1773528068839,17.90399972,87.364,87.322,4.11442578]
[1773528069040,17.90399972,87.363,87.322,4.11442578]
[1773528069337,17.90399972,87.362,87.322,4.11442578]
[1773528069537,17.90399972,87.361,87.322,4.11442578]
[1773528069738,17.90399972,87.36,87.322,4.11442578]
[1773528070037,8.79612297,87.359,87.322,4.11442578]
[1773528070237,10.3,87.365,87.322,4.11442578]
[1773528070439,17.9039867,87.364,87.322,4.11442578]
[1773528070640,17.9039867,87.363,87.322,4.11442578]
[1773528070837,17.9039867,87.362,87.322,4.11442578]
[1773528071039,8.79611499,87.361,87.322,4.11442578]
[1773528071232,8.79611499,87.36,87.322,4.11442578]
[1773528071433,8.79611499,87.359,87.322,4.11442578]
[1773528071635,10.3,87.365,87.322,4.11442578]
[1773528071843,17.78575558,87.364,87.322,4.11442578]
[1773528072140,17.78575558,87.363,87.322,4.11442578]
[1773528072336,8.79611153,87.362,87.322,4.11442578]
[1773528072532,8.79611153,87.361,87.322,4.11442578]
[1773528072742,8.79611153,87.36,87.322,4.11442578]
[1773528072938,8.79611153,87.359,87.322,4.11442578]
[1773528073140,10.3,87.365,87.322,4.11442578]
[1773528073341,17.78604282,87.364,87.322,4.11442578]
[1773528073639,17.78604282,87.363,87.322,4.11442578]
[1773528073840,8.79629351,87.362,87.322,4.11442578]
[1773528074139,8.79629351,87.361,87.322,4.11442578]
[1773528074333,8.79629351,87.36,87.322,4.11442578]
[1773528074540,8.79629351,87.359,87.322,4.11442578]
[1773528074742,8.79629351,87.358,87.322,4.11442578]
[1773528074934,10.3,87.365,87.322,4.11442578]
[1773528075135,17.78648307,87.364,87.322,4.11442578]
[1773528075337,17.78648307,87.363,87.322,4.11442578]
[1773528075537,8.7964216,87.362,87.322,4.11442578]
[1773528075736,8.7964216,87.361,87.322,4.11442578]
[1773528075939,8.7964216,87.36,87.322,4.11442578]
[1773528076141,8.7964216,87.359,87.322,4.11442578]
[1773528076447,8.7964216,87.358,87.322,4.11442578]
[1773528076638,10.3,87.365,87.322,4.11442578]
[1773528076841,17.78670103,87.364,87.322,4.11442578]
[1773528077038,17.78670103,87.363,87.322,4.11442578]
[1773528077247,8.79662115,87.362,87.322,4.11442578]
[1773528077447,8.79662115,87.361,87.322,4.11442578]
[1773528077647,8.79662115,87.36,87.322,4.11442578]
[1773528077949,8.79662115,87.359,87.322,4.11442578]
[1773528078147,8.79662115,87.358,87.322,4.11442578]
[1773528078347,10.3,87.365,87.322,4.11442578]
[1773528078547,17.78674676,87.364,87.322,4.11442578]
[1773528078746,17.78674676,87.363,87.322,4.11442578]
[1773528078949,17.78674676,87.362,87.322,4.11442578]
[1773528079248,8.79664286,87.361,87.322,4.11442578]
[1773528079449,8.79664286,87.36,87.322,4.11442578]
[1773528079748,8.79664286,87.359,87.322,4.11442578]
[1773528079948,8.79664286,87.358,87.322,4.11442578]
[1773528080248,10.3,87.365,87.322,4.11442578]
[1773528080450,17.78680256,87.364,87.322,4.11442578]
[1773528080649,17.78680256,87.363,87.322,4.11442578]
[1773528080847,17.78680256,87.362,87.322,4.11442578]
[1773528081148,8.7966703,87.361,87.322,4.11442578]
[1773528081446,8.7966703,87.36,87.322,4.11442578]
[1773528081647,8.7966703,87.359,87.322,4.11442578]
[1773528081846,8.7966703,87.358,87.322,4.11442578]
[1773528082047,10.3,87.365,87.322,4.11442578]
[1773528082243,17.78682905,87.364,87.322,4.11442578]
[1773528082438,17.78682905,87.363,87.322,4.11442578]
[1773528082643,8.79668491,87.362,87.322,4.11442578]
[1773528082944,8.79668491,87.361,87.322,4.11442578]
[1773528083143,8.79668491,87.36,87.322,4.11442578]
[1773528083344,8.79668491,87.359,87.322,4.11442578]
[1773528083543,8.79668491,87.358,87.322,4.11442578]
[1773528083744,10.3,87.365,87.322,4.11442578]
[1773528083946,17.7868876,87.364,87.322,4.11442578]
[1773528084146,17.7868876,87.363,87.322,4.11442578]
[1773528084346,17.7869065,87.362,87.322,4.11442578]
[1773528084548,8.79671221,87.361,87.322,4.11442578]
[1773528084747,8.79671221,87.36,87.322,4.11442578]
[1773528084948,8.79671221,87.359,87.322,4.11442578]
[1773528085147,8.79671221,87.358,87.322,4.11442578]
[1773528085348,10.3,87.365,87.322,4.11442578]
[1773528085549,17.78695788,87.364,87.322,4.11442578]
[1773528085843,17.78695788,87.363,87.322,4.11442578]
[1773528086146,17.78695788,87.362,87.322,4.11442578]
[1773528086342,8.79674636,87.361,87.322,4.11442578]
[1773528086542,8.79674636,87.36,87.322,4.11442578]
[1773528086751,8.79674636,87.359,87.322,4.11442578]
[1773528086948,10.299,87.374,87.322,4.11442578]
[1773528087252,3.09582315,87.37,87.322,4.11442578]
[1773528087452,8.79610022,87.369,87.322,4.11442578]
[1773528087752,8.79610022,87.368,87.322,4.11442578]
[1773528088050,8.79610022,87.367,87.322,4.11442578]
[1773528088251,3.09582315,87.37,87.322,4.11442578]
[1773528088443,8.79193648,87.369,87.322,4.11442578]
[1773528088642,10.299,87.367,87.322,4.11442578]
[1773528096955,10.3,87.359,87.311,4.190709]
[1773528097160,8.78226322,87.358,87.311,4.190709]
[1773528097452,10.3,87.359,87.311,4.190709]
[1773528097653,3.09582315,87.35,87.311,4.190709]
[1773528099563,10.301,87.349,87.311,4.190709]
[1773528099768,3.09582315,87.35,87.311,4.190709]
[1773528100061,3.09582315,87.34,87.311,4.190709]
[1773528100662,3.09582315,87.35,87.311,4.190709]
[1773528101564,3.09723347,87.35,87.311,4.190709]
[1773528104968,3.09723347,87.34,87.311,4.190709]
[1773528107971,3.09723347,87.35,87.311,4.190709]
[1773528109472,50.48,87.352,87.311,4.190709]
[1773528115683,3.09723347,87.35,87.311,4.190709]
[1773528116684,50.48,87.352,87.311,4.190709]
[1773528117284,3.09723347,87.36,87.311,4.190709]
[1773528117484,10.3,87.359,87.311,4.190709]
[1773528123889,50.66,87.365,87.311,4.190709]
[1773528124089,8.77757824,87.364,87.311,4.190709]
[1773528124288,8.77757824,87.363,87.311,4.190709]
[1773528124587,50.66,87.365,87.311,4.190709]
[1773528124787,8.77758914,87.364,87.311,4.190709]
[1773528124985,8.77758914,87.363,87.311,4.190709]
[1773528125290,8.77761592,87.362,87.311,4.190709]
[1773528125483,50.66,87.365,87.311,4.190709]
[1773528125692,8.77761592,87.364,87.311,4.190709]
[1773528125890,8.77761592,87.363,87.311,4.190709]
[1773528126089,50.66,87.365,87.311,4.190709]
[1773528126391,8.77764386,87.364,87.311,4.190709]
[1773528126591,8.77764386,87.363,87.311,4.190709]
[1773528126783,50.66,87.365,87.311,4.190709]
[1773528126984,8.77764386,87.364,87.311,4.190709]
[1773528127183,8.77764386,87.363,87.311,4.190709]
[1773528127492,3.09723347,87.36,87.311,4.190709]
[1773528128296,50.66,87.365,87.311,4.190709]
[1773528132801,50.66,87.365,87.314,4.10059875]
[1773528139005,3.09723347,87.36,87.314,4.10059875]
[1773528152420,3.09723347,87.36,87.316,4.06988258]
[1773528162822,3.09723347,87.36,87.318,4.07260764]
[1773528163027,156.88515458,87.363,87.318,4.07260764]
[1773528164529,156.88515458,87.363,87.319,10.305]
[1773528164731,156.88515458,87.363,87.32,4.09187623]
[1773528166130,8.75345628,87.362,87.32,4.09187623]
[1773528166428,156.88515458,87.363,87.32,4.09187623]
[1773528166729,8.75345628,87.362,87.32,4.09187623]
[1773528166925,156.88515458,87.363,87.32,4.09187623]
[1773528167131,8.75345628,87.362,87.32,4.09187623]
[1773528167332,156.88515458,87.363,87.32,4.09187623]
[1773528167630,8.75376266,87.362,87.32,4.09187623]
[1773528167833,156.88515458,87.363,87.32,4.09187623]
[1773528168131,8.75376266,87.362,87.32,4.09187623]
[1773528168331,156.88515458,87.363,87.32,4.09187623]
[1773528168532,8.75409306,87.362,87.32,4.09187623]
[1773528168734,156.88515458,87.363,87.32,4.09187623]
[1773528168934,8.75409298,87.362,87.32,4.09187623]
[1773528169233,156.88515458,87.363,87.32,4.09187623]
[1773528169426,8.75442279,87.362,87.32,4.09187623]
[1773528169625,3.09590749,87.36,87.32,4.09187623]
[1773528185853,3.09590749,87.35,87.32,4.09187623]
[1773528199268,10.3,87.359,87.32,4.09187623]
[1773528199566,8.75528366,87.358,87.32,4.09187623]
[1773528199764,8.75528366,87.357,87.32,4.09187623]
[1773528200065,8.75528366,87.356,87.32,4.09187623]
[1773528200367,8.75528366,87.355,87.32,4.09187623]
[1773528200665,10.3,87.359,87.32,4.09187623]
[1773528200864,8.75504599,87.358,87.32,4.09187623]
[1773528201065,8.75504599,87.357,87.32,4.09187623]
[1773528201265,8.75504599,87.356,87.32,4.09187623]
[1773528201563,8.75504599,87.355,87.32,4.09187623]
[1773528201769,10.3,87.359,87.32,4.09187623]
[1773528201967,8.7548397,87.358,87.32,4.09187623]
[1773528202168,8.7548397,87.357,87.32,4.09187623]
[1773528202367,8.7548397,87.356,87.32,4.09187623]
[1773528202666,8.7548397,87.355,87.32,4.09187623]
[1773528202870,10.3,87.359,87.32,4.09187623]
[1773528203062,10.301,87.357,87.32,4.09187623]
[1773528203265,8.75466373,87.356,87.32,4.09187623]
[1773528203464,8.75466373,87.355,87.32,4.09187623]
[1773528203668,10.301,87.357,87.32,4.09187623]
[1773528203868,8.75451648,87.356,87.32,4.09187623]
[1773528204067,8.75451648,87.355,87.32,4.09187623]
[1773528204269,10.301,87.357,87.32,4.09187623]
[1773528204462,8.75439667,87.356,87.32,4.09187623]
[1773528204663,10.301,87.357,87.32,4.09187623]
[1773528204865,8.75439667,87.356,87.32,4.09187623]
[1773528205162,10.301,87.357,87.32,4.09187623]
[1773528205361,8.75430615,87.356,87.32,4.09187623]
[1773528205667,3.09590749,87.35,87.32,4.09187623]
[1773528214575,10.301,87.357,87.32,4.09187623]
[1773528214777,8.7521382,87.356,87.32,4.09187623]
[1773528214977,8.7521382,87.355,87.32,4.09187623]
[1773528215178,10.301,87.357,87.32,4.09187623]
[1773528215380,8.75234583,87.356,87.32,4.09187623]
[1773528215579,8.75234583,87.355,87.32,4.09187623]
[1773528215781,10.301,87.357,87.32,4.09187623]
[1773528216080,8.75234583,87.356,87.32,4.09187623]
[1773528216382,8.75234583,87.355,87.32,4.09187623]
[1773528216582,3.09590749,87.35,87.32,4.09187623]
[1773528221681,10.301,87.357,87.32,4.09187623]
[1773528221882,8.75438427,87.356,87.32,4.09187623]
[1773528222089,8.75438427,87.355,87.32,4.09187623]
[1773528222384,8.75438427,87.354,87.32,4.09187623]
[1773528222590,52.52,87.354,87.32,4.09187623]
[1773528226090,8.75687999,87.353,87.32,4.09187623]
[1773528226390,52.52,87.354,87.32,4.09187623]
[1773528226590,8.75695857,87.353,87.32,4.09187623]
[1773528226790,3.09688295,87.35,87.32,4.09187623]
[1773528227086,3.09688295,87.35,87.31,4.13128327]
[1773528241604,3.09688295,87.35,87.296,21.21029818]
[1773528241605,3.09688295,87.35,87.312,4.12250143]
[1773528241801,52.52,87.354,87.312,4.12250143]
[1773528241997,3.09688295,87.35,87.312,4.12250143]
[1773528245304,10.302,87.348,87.312,4.12250143]
[1773528246404,3.09688295,87.35,87.312,4.12250143]
[1773528249704,52.52,87.354,87.312,4.12250143]
[1773528249906,8.76351387,87.353,87.312,4.12250143]
[1773528250203,8.76351387,87.352,87.312,4.12250143]
[1773528250405,8.76351387,87.351,87.312,4.12250143]
[1773528250704,52.52,87.354,87.312,4.12250143]
[1773528250906,8.76351355,87.353,87.312,4.12250143]
[1773528251205,52.52,87.354,87.312,4.12250143]
[1773528251206,8.76351355,87.352,87.312,4.12250143]
[1773528251399,8.76351355,87.351,87.312,4.12250143]
[1773528251600,52.52,87.354,87.312,4.12250143]
[1773528251806,8.76351323,87.353,87.312,4.12250143]
[1773528252103,8.76351323,87.352,87.312,4.12250143]
[1773528252296,8.76351323,87.351,87.312,4.12250143]
[1773528252495,52.52,87.354,87.312,4.12250143]
[1773528252695,8.76351448,87.353,87.312,4.12250143]
[1773528252894,8.76351448,87.352,87.312,4.12250143]
[1773528253103,8.76351448,87.351,87.312,4.12250143]
[1773528253403,52.52,87.354,87.312,4.12250143]
[1773528253604,8.76351406,87.353,87.312,4.12250143]
[1773528253801,8.76351406,87.352,87.312,4.12250143]
[1773528254007,8.76351406,87.351,87.312,4.12250143]
[1773528254207,52.52,87.354,87.312,4.12250143]
[1773528254507,8.76351364,87.353,87.312,4.12250143]
[1773528254806,8.76351364,87.352,87.312,4.12250143]
[1773528255107,8.76351364,87.351,87.312,4.12250143]
[1773528255304,52.52,87.354,87.312,4.12250143]
[1773528255507,8.76351347,87.353,87.312,4.12250143]
[1773528255706,8.76351347,87.352,87.312,4.12250143]
[1773528256005,8.76351347,87.351,87.312,4.12250143]
[1773528256300,52.52,87.354,87.312,4.12250143]
[1773528256500,8.76351304,87.353,87.312,4.12250143]
[1773528256704,8.76351304,87.352,87.312,4.12250143]
[1773528256904,8.76351304,87.351,87.312,4.12250143]
[1773528257104,10.301,87.353,87.312,4.12250143]
[1773528257309,8.76351304,87.352,87.312,4.12250143]
[1773528257508,8.76351304,87.351,87.312,4.12250143]
[1773528257704,10.301,87.353,87.312,4.12250143]